bitfinex/quotes_ETHUSD_20241122
["timestamp","ask_amount","ask_price","bid_price","bid_amount"]
[1732251671205,0.8177,3382.8,3382.0,0.2944]
[1732251671673,0.8177,3382.8,3382.2,0.2944]
[1732251671969,0.8177,3382.8,3382.4,0.2944]
[1732251672473,0.00917255,3382.9,3382.6,0.2944]
[1732251672860,0.83897255,3383.1,3382.6,0.2944]
[1732251673058,0.83897255,3383.1,3382.8,0.2944]
[1732251673574,0.83897255,3383.7,3383.1,0.2944]
[1732251673878,0.83897255,3383.7,3383.3,0.2944]
[1732251674486,0.00917255,3383.5,3383.3,0.2944]
[1732251674776,0.00917255,3383.5,3383.0,0.2944]
[1732251675071,0.00917255,3383.5,3383.2,0.2944]
[1732251675935,0.00917255,3383.5,3382.6,0.2944]
[1732251676170,0.00917255,3383.5,3382.8,0.2944]
[1732251676369,0.00917255,3383.5,3383.0,0.2944]
[1732251677189,0.00917255,3383.1,3383.0,0.2944]
[1732251678505,0.00917255,3383.1,3382.6,0.2944]
[1732251679067,0.00917255,3383.1,3382.6,0.45729]
[1732251679270,0.8298,3383.7,3382.6,0.45729]
[1732251679271,0.8298,3383.6,3382.6,0.2944]
[1732251679778,0.8298,3383.4,3382.7,0.2944]
[1732251680807,0.8298,3383.4,3382.3,0.2944]
[1732251681015,0.8298,3383.4,3382.3,0.45729]
[1732251682379,0.8298,3383.4,3382.3,0.2944]
[1732251682923,3.03695283,3383.3,3382.4,0.2944]
[1732251683225,0.8298,3383.2,3382.4,0.2944]
[1732251683372,0.8298,3383.0,3382.4,0.2944]
[1732251683578,0.8298,3382.8,3382.4,0.2944]
[1732251683778,0.8667596,3382.7,3382.5,0.2944]
[1732251684180,0.8048,3382.7,3382.5,0.2944]
[1732251684912,0.8048,3382.7,3381.6,0.2944]
[1732251685275,0.8048,3382.7,3381.8,0.2944]
[1732251685559,0.8048,3382.7,3382.0,0.2944]
[1732251685828,0.03695436,3383.6,3382.2,0.2944]
[1732251686423,0.41232081,3383.6,3382.2,0.2944]
[1732251686592,0.41232081,3383.6,3382.1,0.2944]
[1732251686979,0.01,3383.5,3382.1,0.2944]
[1732251687207,0.8158,3383.3,3382.1,0.2944]
[1732251687407,0.8158,3383.1,3382.1,0.2944]
[1732251687675,0.8158,3382.9,3382.2,0.2944]
[1732251687892,0.8158,3382.7,3382.2,0.2944]
[1732251688181,0.8158,3382.4,3380.3,0.8181]
[1732251688414,0.8158,3382.2,3380.5,0.8181]
[1732251688711,0.85276825,3382.1,3380.5,0.8181]
[1732251689124,0.85276825,3382.1,3380.6,0.2944]
[1732251689722,0.85276825,3382.1,3379.7,0.2944]
[1732251689723,0.8158,3381.8,3379.7,0.2944]
[1732251689879,0.85277618,3381.7,3379.7,0.2944]
[1732251690281,0.8158,3381.6,3379.7,0.2944]
[1732251690591,0.8158,3381.2,3379.7,0.2944]
[1732251690795,0.8158,3381.0,3379.4,0.2944]
[1732251690997,0.8158,3380.8,3379.4,0.2944]
[1732251691186,0.8158,3380.6,3379.4,0.2944]
[1732251691388,0.0369828,3380.5,3379.4,0.2944]
[1732251691695,0.0369828,3380.5,3379.5,0.2944]
[1732251692482,0.8158,3380.6,3379.5,0.2944]
[1732251692483,0.85278553,3380.6,3379.5,0.2944]
[1732251692683,0.85278553,3380.6,3379.3,0.005]
[1732251692983,0.8158,3380.6,3379.3,0.005]
[1732251693202,0.8158,3380.6,3379.5,0.2944]
[1732251693401,0.8158,3380.6,3379.7,0.2944]
[1732251693706,0.01,3381.3,3379.7,0.2944]
[1732251693707,0.8158,3380.4,3379.7,0.2944]
[1732251694101,0.03698562,3380.3,3379.7,0.2944]
[1732251694446,0.8158,3380.2,3379.3,0.005]
[1732251694607,0.03698859,3380.1,3379.3,0.005]
[1732251694805,0.8158,3380.2,3379.3,0.005]
[1732251696305,0.8158,3380.2,3379.4,0.55]
[1732251696505,0.8158,3380.9,3379.4,0.55]
[1732251696847,0.8158,3380.9,3379.6,0.2944]
[1732251697049,0.8158,3380.9,3379.7,0.55]
[1732251697248,0.8158,3380.9,3379.9,0.55]
[1732251697450,0.8158,3381.8,3379.9,0.55]
[1732251698066,0.8158,3381.8,3380.0,0.2944]
[1732251698250,0.03697138,3381.7,3380.2,0.55]
[1732251698792,0.8158,3381.6,3379.9,0.55]
[1732251698965,0.03697533,3381.5,3380.1,0.55]
[1732251699167,0.8158,3381.4,3380.0,0.16625]
[1732251699477,0.03697531,3381.3,3380.1,0.55]
[1732251699664,0.03697531,3381.3,3379.9,0.55]
[1732251700366,0.03697531,3381.3,3380.1,0.55]
[1732251700603,0.03697531,3381.3,3379.9,0.55]
[1732251701439,0.8158,3381.4,3379.9,0.55]
[1732251703054,0.8158,3381.4,3379.9,0.8444]
[1732251703243,0.8158,3381.4,3379.3,0.005]
[1732251703244,0.8158,3381.4,3380.1,0.8444]
[1732251703458,0.8158,3381.4,3380.3,0.8444]
[1732251704040,0.8222,3381.7,3380.4,0.7997]
[1732251704242,0.8222,3381.7,3380.5,0.8444]
[1732251704447,0.8222,3381.7,3380.7,0.8444]
[1732251704920,0.8222,3382.6,3381.1,0.2944]
[1732251705059,0.8222,3382.4,3381.1,0.2944]
[1732251705397,0.8222,3382.2,3381.1,0.2944]
[1732251705686,0.03696678,3382.1,3381.1,0.2944]
[1732251705848,0.03696678,3382.1,3380.8,0.7997]
[1732251705849,0.8222,3382.2,3381.2,0.2944]
[1732251706048,0.36431713,3383.1,3381.2,0.2944]
[1732251706049,0.85916679,3382.1,3381.2,0.2944]
[1732251706752,0.85916679,3382.1,3380.2,0.2944]
[1732251706753,0.8222,3381.9,3380.2,0.2944]
[1732251707079,0.8222,3381.9,3379.4,0.7997]
[1732251707080,0.85917856,3381.8,3379.5,0.2944]
[1732251707450,0.8222,3381.6,3379.5,0.2944]
[1732251707646,0.8222,3381.4,3379.5,0.2944]
[1732251707888,0.85917857,3381.3,3379.5,0.2944]
[1732251708196,0.85917857,3381.3,3379.7,0.2944]
[1732251708892,0.85917857,3381.3,3379.6,0.55]
[1732251708893,0.8222,3380.9,3379.1,0.2944]
[1732251709094,0.8222,3380.8,3379.1,0.2944]
[1732251709262,0.85918544,3380.8,3379.2,0.2944]
[1732251709468,0.8322,3380.7,3379.2,0.2944]
[1732251709676,0.60304226,3380.6,3379.2,0.2944]
[1732251709879,5.26920927,3380.4,3379.2,0.2944]
[1732251710195,0.85919199,3380.3,3377.8,0.2944]
[1732251710398,0.86919199,3380.3,3377.8,0.2944]
[1732251710996,0.87919199,3380.3,3377.8,0.2944]
[1732251711203,0.8222,3379.9,3377.9,0.2944]
[1732251711496,0.86919935,3379.8,3377.9,0.2944]
[1732251712190,0.86919935,3379.8,3377.1,0.2944]
[1732251712493,0.7603,3379.6,3377.3,0.2944]
[1732251712796,0.03699938,3379.5,3377.5,0.2944]
[1732251712966,0.03699938,3379.5,3378.0,0.2944]
[1732251713161,0.03699938,3379.5,3378.2,0.2944]
[1732251713380,0.7603,3379.4,3378.2,0.2944]
[1732251713602,0.79729942,3379.3,3378.2,0.2944]
[1732251714210,0.79729942,3379.3,3378.0,0.2944]
[1732251714496,0.79729942,3379.3,3376.8,0.20574534]
[1732251714497,0.79729942,3379.3,3376.8,0.8059]
[1732251715367,0.79729942,3379.3,3376.8,1.1003]
[1732251716095,0.55,3379.0,3376.4,0.8059]
[1732251716250,0.7603,3378.5,3375.9,0.8059]
[1732251716453,0.03701615,3378.4,3376.7,0.8059]
[1732251716790,0.7603,3378.6,3376.7,0.8059]
[1732251716959,0.7603,3378.4,3376.7,0.8059]
[1732251717162,0.7603,3378.2,3376.3,0.8059]
[1732251717462,0.7603,3378.0,3376.3,0.8059]
[1732251717674,0.7603,3377.8,3376.3,0.8059]
[1732251717868,0.03701371,3377.7,3376.2,0.2944]
[1732251718070,0.7603,3378.0,3375.7,1.21684239]
[1732251718267,0.79732051,3377.9,3375.7,1.21684239]
[1732251718487,0.79732051,3377.9,3375.6,0.7603]
[1732251718702,0.55,3376.1,3375.5,1.82526358]
[1732251718999,0.79733718,3376.0,3375.5,1.82526358]
[1732251719294,0.7603,3375.8,3375.5,1.82526358]
[1732251719502,4.45700927,3376.3,3373.4,0.8059]
[1732251719503,0.7603,3375.6,3373.4,0.8059]
[1732251719788,0.7603,3375.6,3373.6,0.9111554]
[1732251720155,0.03703545,3375.5,3373.6,0.9211554]
[1732251720355,0.7603,3376.1,3373.8,0.8159]
[1732251720568,0.7603,3376.1,3373.9,0.01]
[1732251720800,0.7603,3376.1,3374.0,0.8159]
[1732251721416,0.7603,3376.5,3374.3,0.8159]
[1732251721558,0.7603,3376.5,3374.7,0.8059]
[1732251721764,0.7603,3376.5,3375.0,0.01]
[1732251721954,0.7603,3377.1,3375.0,0.02]
[1732251722200,0.7603,3377.1,3375.4,0.55]
[1732251723147,0.7603,3377.1,3375.4,0.57]
[1732251723405,0.03701483,3377.0,3375.4,0.56]
[1732251723700,0.7603,3377.1,3375.4,0.56]
[1732251724668,0.89,3377.3,3375.9,0.55]
[1732251724866,1.6503,3377.6,3376.0,0.01]
[1732251725074,0.89,3377.6,3376.2,0.55]
[1732251725503,1.6503,3378.1,3376.3,0.01]
[1732251725978,1.6503,3378.1,3376.2,0.56]
[1732251726307,0.03700353,3378.0,3376.2,0.56]
[1732251726460,1.81533,3378.1,3376.2,0.56]
[1732251726661,1.6503,3378.1,3376.2,0.56]
[1732251727486,0.03700653,3378.0,3376.2,0.56]
[1732251728385,1.6503,3378.1,3376.4,0.55]
[1732251728726,1.6503,3378.1,3377.2,3.0]
[1732251728926,1.6503,3378.1,3377.3,0.3]
[1732251729282,1.3559,3378.1,3376.7,0.2944]
[1732251730278,1.3559,3378.1,3376.4,0.2944]
[1732251730279,0.0370053,3378.0,3376.4,0.2944]
[1732251731388,0.0370053,3378.0,3376.0,0.2944]
[1732251732006,0.57440676,3378.0,3376.0,0.2944]
[1732251732335,0.7755,3377.9,3376.0,0.2944]
[1732251732490,0.03701277,3377.8,3376.0,0.2944]
[1732251733420,0.03701277,3377.8,3375.3,3.01]
[1732251733421,0.7755,3377.7,3376.1,0.2944]
[1732251733621,0.03701651,3377.6,3376.1,0.2944]
[1732251734327,0.7755,3377.5,3376.1,0.2944]
[1732251734495,0.7755,3377.5,3376.2,0.2944]
[1732251734496,0.03702101,3377.4,3376.2,0.2944]
[1732251734683,0.7755,3377.5,3376.2,0.2944]
[1732251735024,0.03701762,3377.4,3376.2,0.2944]
[1732251735331,0.7755,3377.3,3376.2,0.2944]
[1732251735529,0.89,3377.9,3375.7,0.2944]
[1732251735530,0.81252451,3377.2,3375.7,0.2944]
[1732251736406,0.81252451,3377.2,3375.1,0.2944]
[1732251736991,0.81252451,3377.2,3375.7,0.2944]
[1732251737925,0.81252451,3377.2,3375.7,3.2944]
[1732251738126,0.81252451,3377.2,3375.9,0.2944]
[1732251739125,0.81252451,3377.2,3375.1,0.2944]
[1732251739296,0.81092451,3377.2,3375.1,0.2944]
[1732251739498,0.81092451,3377.2,3374.5,0.02]
[1732251739499,0.7755,3377.0,3374.1,0.3044]
[1732251739699,0.7755,3376.8,3374.1,0.3044]
[1732251739927,0.03702984,3376.7,3374.4,0.2944]
[1732251740386,0.7755,3376.8,3374.4,0.3044]
[1732251740590,0.81252485,3376.8,3374.4,0.3044]
[1732251740933,0.81252485,3376.8,3374.5,0.01]
[1732251741239,0.03702355,3376.7,3374.9,0.2944]
[1732251741684,0.94575249,3376.8,3374.9,0.2944]
[1732251742114,0.7755,3376.6,3375.5,0.2944]
[1732251744935,1.6655,3377.0,3375.5,0.2944]
[1732251745497,0.81251689,3376.9,3375.6,0.2944]
[1732251745698,0.7755,3376.7,3375.6,0.2944]
[1732251745909,0.03702237,3376.6,3375.6,0.2944]
[1732251746735,0.03702237,3376.6,3375.0,0.7578]
[1732251746736,0.55,3376.5,3375.7,0.2944]
[1732251747032,0.55,3376.6,3375.7,0.2944]
[1732251747340,0.03702349,3376.5,3375.7,0.2944]
[1732251747629,0.03702349,3376.5,3375.0,3.7578]
[1732251747630,0.03702349,3376.5,3375.1,0.2944]
[1732251747836,0.03702349,3376.5,3375.1,0.95118]
[1732251749424,0.55,3376.6,3375.2,0.02961882]
[1732251749589,0.03518806,3376.5,3375.2,0.02961882]
[1732251749792,0.03518806,3376.5,3375.3,0.47385988]
[1732251749994,0.03518806,3376.5,3375.4,0.24877239]
[1732251750189,0.55,3376.6,3375.5,0.21915355]
[1732251750434,0.03518806,3376.5,3375.5,0.21915355]
[1732251750593,0.03518806,3376.5,3375.6,0.21915355]
[1732251750793,0.03518806,3376.5,3375.7,0.21915355]
[1732251751095,0.03518806,3376.5,3375.8,0.21915355]
[1732251751291,0.03518806,3376.5,3375.4,0.02961885]
[1732251751638,0.8243,3376.4,3375.5,0.2192092]
[1732251751944,0.8243,3376.4,3375.6,0.2192092]
[1732251752096,0.8243,3376.4,3375.7,0.2192092]
[1732251752431,0.8243,3376.4,3375.8,0.2192092]
[1732251752639,0.8243,3376.4,3375.9,0.2192092]
[1732251752934,0.8243,3376.4,3376.0,0.5136092]
[1732251753118,0.8243,3376.4,3375.4,0.02961885]
[1732251753119,0.8243,3376.4,3376.2,0.2944]
[1732251753318,3.05595713,3376.8,3375.1,0.65678]
[1732251753319,0.8243,3376.7,3376.4,0.2944]
[1732251753700,0.8243,3376.7,3375.9,0.02921419]
[1732251754434,0.8243,3376.7,3375.5,0.2944]
[1732251754602,0.8243,3376.7,3375.6,0.02921655]
[1732251754806,0.55,3376.6,3375.6,0.02921655]
[1732251755009,0.8243,3376.7,3375.6,0.02961656]
[1732251755335,3.90831361,3376.7,3375.6,0.02961656]
[1732251755900,0.8243,3376.7,3375.6,0.02961656]
[1732251756253,0.8243,3376.7,3375.6,0.2944]
[1732251756254,3.11960167,3376.6,3375.6,0.2944]
[1732251756737,3.08401361,3376.6,3375.6,0.2944]
[1732251757117,3.08401361,3376.6,3375.2,0.32401896]
[1732251757350,3.08401361,3376.5,3375.4,0.2944]
[1732251758729,0.03558806,3376.4,3375.4,0.2944]
[1732251759237,3.08401361,3376.5,3375.4,0.2944]
[1732251759411,2.78961361,3376.5,3375.4,0.2944]
[1732251760147,0.03558806,3376.4,3375.4,0.2944]
[1732251760352,0.55,3376.4,3375.4,0.2944]
[1732251760525,0.55,3376.4,3373.9,0.02962385]
[1732251760526,0.55,3375.8,3373.9,0.02962385]
[1732251760853,0.03703203,3375.7,3373.8,0.2174743]
[1732251761271,0.03703203,3375.7,3374.0,0.01]
[1732251761563,0.7608,3375.7,3373.9,0.01]
[1732251761849,0.55,3375.6,3373.9,0.01]
[1732251762456,4.46161633,3375.7,3373.9,0.01]
[1732251762652,0.7608,3375.7,3373.9,0.01]
[1732251762960,0.7608,3375.2,3373.8,0.2074743]
[1732251763156,3.74193271,3375.1,3373.8,0.79130727]
[1732251763650,0.54833984,3375.0,3373.9,0.2944]
[1732251763850,0.03704066,3374.9,3373.9,0.2944]
[1732251764355,4.25323452,3375.0,3373.9,0.2944]
[1732251764654,0.54833984,3375.0,3373.9,0.2944]
[1732251764862,3.70489468,3374.5,3373.7,0.2944]
[1732251765162,3.70489468,3374.3,3373.7,0.2944]
[1732251765322,3.70489468,3374.4,3373.7,0.2944]
[1732251765524,0.7608,3374.8,3373.6,0.1507554]
[1732251765525,3.70489468,3374.5,3373.9,0.2944]
[1732251765765,0.89,3374.5,3374.1,0.2944]
[1732251766017,5.47370186,3374.5,3374.3,0.2944]
[1732251766245,4.46123544,3374.4,3374.3,0.2944]
[1732251766564,5.67022506,3374.4,3374.3,0.2944]
[1732251766743,1.34784859,3374.4,3374.3,0.2944]
[1732251766944,1.3108,3374.4,3373.7,0.2944]
[1732251767261,3.0821436,3373.8,3373.7,0.2944]
[1732251767617,3.0821436,3373.9,3373.7,0.2944]
[1732251767818,0.7608,3374.4,3373.7,0.2944]
[1732251767819,3.0821436,3374.0,3373.7,0.2944]
[1732251768304,3.0821436,3373.8,3373.7,0.2944]
[1732251768566,0.55,3373.8,3373.7,0.2944]
[1732251768857,4.24688283,3373.8,3373.7,0.2944]
[1732251769231,0.55,3373.7,3373.6,0.1507554]
[1732251769430,0.58705544,3373.7,3373.6,0.1507554]
[1732251769843,0.55,3373.7,3373.6,0.1507554]
[1732251770050,1.6508,3373.8,3373.6,0.1507554]
[1732251770266,0.89,3373.8,3373.6,0.1507554]
[1732251774262,2.6121446,3373.5,3372.7,0.2944]
[1732251774598,2.6121446,3373.5,3372.6,0.01]
[1732251775395,2.6121446,3373.5,3372.6,0.3044]
[1732251776405,2.6121446,3373.5,3372.6,0.3144]
[1732251777059,2.6121446,3373.5,3372.6,0.3044]
[1732251777263,2.6121446,3373.5,3372.8,0.2944]
[1732251778061,3.3729446,3373.5,3372.8,0.2944]
[1732251778389,3.3729446,3373.5,3372.3,1.0854]
[1732251778711,3.3729446,3373.5,3372.5,0.2944]
[1732251779305,3.0785446,3373.5,3372.5,0.2944]
[1732251779516,3.0785446,3373.5,3372.4,0.39014]
[1732251779817,3.0785446,3373.5,3372.5,0.72064252]
[1732251780103,3.0785446,3373.5,3371.8,4.95005523]
[1732251780104,0.89,3372.7,3371.8,2.27005523]
[1732251780316,0.89,3373.1,3371.9,0.2944]
[1732251780465,0.89,3373.1,3372.1,0.2944]
[1732251780660,0.7608,3373.0,3372.1,0.2944]
[1732251781429,0.7608,3373.0,3371.8,2.27005523]
[1732251781430,0.7608,3373.0,3372.2,0.2944]
[1732251782463,0.89,3373.1,3372.0,0.791]
[1732251782464,0.89,3373.1,3372.1,0.2944]
[1732251782661,0.89,3373.1,3372.3,0.2944]
[1732251783429,0.89,3373.1,3372.4,0.791]
[1732251783597,0.89,3373.1,3372.5,0.2944]
[1732251783801,3.2077446,3373.5,3372.5,0.2944]
[1732251784721,0.7608,3373.4,3372.5,0.2944]
[1732251786051,0.03705455,3373.3,3372.5,0.2944]
[1732251786218,0.79785455,3373.4,3372.5,0.2944]
[1732251786419,0.7608,3373.3,3372.1,0.2944]
[1732251786759,0.7608,3373.2,3371.9,0.2944]
[1732251786963,0.7608,3372.5,3371.8,2.20216075]
[1732251787542,0.79786444,3372.5,3371.8,2.20216075]
[1732251787712,0.96665088,3372.5,3371.9,0.2944]
[1732251788148,0.89,3372.4,3371.9,0.2944]
[1732251788456,0.7608,3372.2,3371.9,0.2944]
[1732251788616,0.0370682,3372.1,3371.9,0.2944]
[1732251788812,0.7608,3371.9,3371.8,2.49646075]
[1732251789018,1.51666094,3371.9,3371.8,1.90628975]
[1732251789216,0.7608,3371.7,3370.2,0.1508554]
[1732251789569,1.60878682,3371.9,3370.2,0.1508554]
[1732251789570,0.89,3370.9,3370.2,0.1508554]
[1732251789858,0.89,3371.5,3370.5,0.2944]
[1732251790942,0.89,3371.5,3370.6,0.2944]
[1732251791618,0.89,3371.5,3370.2,0.1508554]
[1732251791619,0.89,3371.6,3370.8,0.2944]
[1732251791845,0.7938,3372.1,3370.8,0.2944]
[1732251791846,0.89,3372.0,3370.8,0.2944]
[1732251795278,0.03706964,3371.9,3370.8,0.2944]
[1732251795480,1.05838,3372.0,3370.8,0.2944]
[1732251795782,1.05838,3372.0,3370.9,0.2944]
[1732251795934,0.7938,3371.8,3370.9,0.2944]
[1732251796140,0.03707847,3371.7,3370.9,0.2944]
[1732251796469,0.7938,3371.8,3370.9,0.2944]
[1732251796632,0.7938,3371.7,3370.9,0.2944]
[1732251797636,0.7938,3371.7,3370.3,0.2944]
[1732251797879,0.7938,3371.7,3370.9,0.2944]
[1732251798163,0.7938,3371.7,3371.2,0.2944]
[1732251798417,0.7938,3371.7,3371.2,0.62384]
[1732251798678,0.7938,3371.7,3371.2,0.2944]
[1732251799086,0.89,3372.0,3370.8,0.2944]
[1732251799294,0.5956,3372.0,3370.8,0.2944]
[1732251799779,0.8308697,3371.9,3370.8,0.2944]
[1732251799985,0.03707305,3371.8,3370.8,0.2944]
[1732251800151,0.03707886,3371.7,3370.4,0.2944]
[1732251800359,0.2956,3371.3,3370.4,0.2944]
[1732251800585,0.03708278,3371.2,3370.4,0.2944]
[1732251800881,0.7938,3371.1,3370.4,0.2944]
[1732251801185,0.7938,3371.1,3370.2,0.1508554]
[1732251801186,0.7938,3371.1,3370.3,0.2944]
[1732251801342,0.7938,3370.5,3370.3,0.2944]
[1732251801536,1.08897054,3370.5,3370.3,0.2944]
[1732251801738,0.2956,3370.5,3370.3,0.2944]
[1732251803480,0.55,3372.4,3370.3,0.2944]
[1732251803680,0.55,3372.2,3370.3,0.2944]
[1732251803875,0.0275881,3372.1,3370.3,0.2944]
[1732251804467,0.7938,3372.0,3370.3,0.2944]
[1732251804669,0.7938,3371.8,3370.3,0.2944]
[1732251804907,0.7938,3371.6,3370.3,0.2944]
[1732251805066,0.55,3372.4,3370.3,0.2944]
[1732251805067,0.7938,3370.4,3370.3,0.2944]
[1732251805565,0.3,3370.5,3370.3,0.2944]
[1732251805993,0.3,3370.7,3370.3,0.2944]
[1732251806684,0.03708924,3370.6,3370.3,0.2944]
[1732251807067,0.3,3370.7,3370.3,0.2944]
[1732251807286,0.3352503,3370.7,3370.3,0.2944]
[1732251807479,0.8078,3370.6,3370.3,0.2944]
[1732251807800,0.03709339,3370.5,3370.3,0.2944]
[1732251808306,0.8078,3370.4,3370.3,0.2944]
[1732251809264,0.8078,3370.4,3370.2,0.1508554]
[1732251809603,0.03598436,3370.3,3370.2,0.1508554]
[1732251810013,0.8078,3370.4,3370.2,0.1508554]
[1732251811100,0.03598072,3370.3,3370.2,0.1508554]
[1732251812116,1.39248072,3370.3,3370.2,0.1508554]
[1732251813461,0.8065,3370.1,3368.6,0.7564]
[1732251813615,0.03599072,3370.0,3368.7,0.49521811]
[1732251814776,0.29816,3369.3,3368.7,0.51327629]
[1732251815414,0.29816,3369.3,3368.7,0.49521811]
[1732251815619,0.2981598,3369.3,3368.7,0.49521811]
[1732251817215,0.2981598,3369.3,3368.7,0.51327647]
[1732251817837,0.2981598,3369.3,3368.7,0.49521811]
[1732251818238,0.33415239,3369.3,3368.5,0.2944]
[1732251818529,0.2981598,3369.3,3368.5,0.2944]
[1732251819099,0.03599261,3369.2,3368.5,0.2944]
[1732251819439,0.03975241,3369.3,3368.5,0.71957811]
[1732251819640,0.03975241,3369.3,3368.5,0.2944]
[1732251821238,0.07975241,3369.3,3368.5,0.2944]
[1732251822148,0.07975241,3369.3,3368.2,0.20064691]
[1732251822149,0.02015111,3369.2,3368.6,0.2944]
[1732251822304,0.781,3369.1,3368.6,0.2944]
[1732251822509,0.821,3369.1,3368.6,0.2944]
[1732251822739,0.781,3368.9,3368.6,0.2944]
[1732251823052,0.02015111,3368.8,3367.1,0.32409046]
[1732251823219,0.781,3368.7,3367.7,0.2944]
[1732251823546,0.781,3368.5,3367.7,0.2944]
[1732251823851,0.02015111,3368.4,3367.7,0.2944]
[1732251824361,0.781,3368.3,3366.8,0.1508554]
[1732251824657,0.02015111,3368.2,3366.9,0.8279]
[1732251824807,0.02015111,3368.2,3366.8,0.1508554]
[1732251824808,0.781,3367.2,3366.8,0.1508554]
[1732251825010,0.04,3367.2,3366.8,0.1508554]
[1732251825263,0.06015111,3367.5,3366.8,0.1508554]
[1732251825412,0.781,3367.1,3366.8,0.1508554]
[1732251825807,0.80115111,3367.0,3366.8,0.1508554]
[1732251826452,0.02015111,3366.9,3366.8,0.1508554]
[1732251827342,0.01515111,3366.9,3366.8,0.1508554]
[1732251828213,0.01515111,3366.9,3364.9,0.8279]
[1732251828214,0.01515111,3366.9,3364.9,0.48212417]
[1732251828498,0.033,3365.5,3365.0,0.5435273]
[1732251828635,0.023,3365.5,3365.2,0.2944]
[1732251828945,0.023,3365.5,3365.4,0.2944]
[1732251829146,0.023,3365.5,3365.4,0.5138165]
[1732251829360,0.01515111,3366.9,3365.4,0.5138165]
[1732251829361,0.01515111,3366.9,3365.4,0.51390832]
[1732251829660,0.01,3365.5,3365.4,0.2944]
[1732251829953,0.01,3366.8,3365.5,0.2944]
[1732251830127,0.01515111,3366.7,3365.7,0.2944]
[1732251830326,0.01515111,3366.7,3365.9,0.2944]
[1732251830518,0.01515111,3366.7,3366.0,0.21934232]
[1732251830716,0.01,3366.8,3366.1,0.21934232]
[1732251830914,0.781,3367.0,3365.9,0.2944]
[1732251830915,0.01,3366.9,3366.2,0.21934232]
[1732251831225,0.01,3366.9,3366.1,0.2944]
[1732251831536,0.01,3366.9,3366.2,0.02970391]
[1732251831937,0.01,3366.9,3366.1,0.2944]
[1732251833365,0.01,3366.9,3366.2,0.41223]
[1732251833366,0.02515111,3366.9,3366.2,0.41223]
[1732251833539,0.01,3366.9,3366.0,0.2944]
[1732251833865,0.02515111,3366.9,3366.0,0.2944]
[1732251834371,0.02515111,3366.9,3365.9,0.2944]
[1732251835368,0.02515111,3366.9,3365.4,0.2944]
[1732251836242,0.8159,3366.8,3365.4,0.2944]
[1732251836458,0.01515111,3366.7,3365.3,0.2944]
[1732251836790,0.8159,3366.6,3365.3,0.2944]
[1732251837068,0.83105111,3366.5,3364.9,0.2944]
[1732251837571,0.84105111,3366.5,3363.9,0.02]
[1732251837783,0.84105111,3366.5,3364.0,0.02971416]
[1732251838284,0.01515111,3366.4,3364.1,0.01]
[1732251838460,0.8159,3366.3,3364.2,0.02971253]
[1732251838769,0.01515111,3366.2,3364.2,0.02971253]
[1732251838972,0.8159,3366.3,3364.2,0.02971253]
[1732251839135,0.01515111,3366.2,3364.2,0.02971253]
[1732251839846,0.8159,3366.1,3364.2,0.02971253]
[1732251840037,0.8159,3366.8,3364.6,0.2944]
[1732251840234,0.01515111,3366.7,3364.7,0.02971024]
[1732251840435,0.8159,3366.8,3364.9,0.3044]
[1732251840758,0.8159,3366.8,3365.2,0.2944]
[1732251841069,0.8159,3366.8,3365.3,0.02970549]
[1732251841384,0.8159,3366.8,3365.5,0.2944]
[1732251841674,0.8159,3368.0,3365.6,0.02970267]
[1732251841879,0.8159,3368.0,3366.0,0.2944]
[1732251842052,0.01515111,3367.9,3366.3,0.2944]
[1732251842232,0.01515111,3367.9,3366.4,0.0296967]
[1732251842427,0.01515111,3367.9,3366.3,0.2944]
[1732251842428,0.8159,3367.8,3366.3,0.2944]
[1732251842657,0.01515111,3367.7,3366.3,0.2944]
[1732251843091,0.8159,3367.6,3366.4,0.2944]
[1732251843245,0.8159,3367.4,3366.4,0.2944]
[1732251843586,0.01515111,3367.3,3366.4,0.2944]
[1732251844191,0.01515111,3367.3,3365.8,0.2944]
[1732251844676,0.8159,3367.2,3365.8,0.2944]
[1732251844832,0.8159,3367.0,3365.8,0.2944]
[1732251845035,0.01,3367.7,3365.8,0.2944]
[1732251845036,0.8159,3366.8,3365.8,0.2944]
[1732251845260,0.01515111,3366.7,3365.3,0.2944]
[1732251846381,0.8159,3366.8,3365.3,0.2944]
[1732251846545,0.8159,3366.8,3365.5,0.2944]
[1732251846759,0.8159,3367.6,3365.6,0.02970682]
[1732251846951,0.01515111,3367.5,3365.8,0.2944]
[1732251847180,0.8159,3367.6,3365.9,0.02970087]
[1732251847425,0.01515111,3367.5,3365.9,0.02970087]
[1732251847719,0.01515111,3367.5,3365.8,0.2944]
[1732251848217,0.01515111,3367.5,3364.9,0.02970218]
[1732251848218,0.8159,3367.4,3365.9,0.2944]
[1732251848542,0.01515111,3367.5,3365.9,0.2944]
[1732251848543,0.8159,3367.2,3365.9,0.2944]
[1732251848736,0.55,3366.9,3365.9,0.2944]
[1732251849042,0.8159,3366.7,3365.9,0.2944]
[1732251849173,0.8159,3366.7,3365.1,0.2944]
[1732251849174,0.01515111,3366.6,3365.1,0.2944]
[1732251850099,0.8159,3366.5,3365.1,0.2944]
[1732251850305,0.8159,3366.5,3364.6,0.8276]
[1732251850306,0.8159,3366.3,3364.7,0.2944]
[1732251850474,0.01,3366.5,3364.7,0.2944]
[1732251850475,0.8159,3366.1,3364.7,0.2944]
[1732251850677,0.01515111,3366.0,3364.7,0.2944]
[1732251851720,0.8159,3366.1,3364.8,1.122]
[1732251851922,0.01515111,3366.9,3364.9,0.02971308]
[1732251851923,0.8159,3366.5,3364.9,0.02971308]
[1732251852075,0.01515111,3366.4,3364.9,0.02971308]
[1732251852480,0.01515111,3366.4,3364.8,1.122]
[1732251852707,0.01515111,3366.4,3364.9,0.0297126]